bitfinex/quotes_SOLUSD_20251116
["timestamp","ask_amount","ask_price","bid_price","bid_amount"]
[1763279037372,2.68698062,141.91,141.88,0.69]
[1763279037956,2.76698062,141.92,141.88,0.69]
[1763279039184,2.76698062,141.92,141.88,7.73802019]
[1763279041481,2.76698062,141.92,141.89,0.69]
[1763279041777,0.08,141.92,141.89,0.69]
[1763279041977,106.88698062,141.95,141.9,2.68698062]
[1763279042152,106.88698062,141.95,141.89,0.69]
[1763279042153,104.2,141.95,141.91,2.68698062]
[1763279042357,106.88698062,141.95,141.9,2.68698062]
[1763279042553,0.2,141.96,141.91,2.68698062]
[1763279042756,0.2,141.96,141.89,23.3412]
[1763279042757,0.2,141.96,141.92,3.37698062]
[1763279042971,2.88698062,141.96,141.91,2.68698062]
[1763279043168,2.68698062,141.95,141.92,0.69]
[1763279043853,2.76698062,141.95,141.92,0.69]
[1763279044383,2.68698062,141.95,141.92,7.73618102]
[1763279045251,0.2,141.96,141.93,0.69]
[1763279047457,0.2,141.96,141.93,10.42256865]
[1763279047862,0.2,141.96,141.94,0.69]
[1763279048787,0.2,141.96,141.94,7.73514437]
[1763279048992,0.2,141.96,141.94,10.42212499]
[1763279049190,0.2,141.96,141.95,0.69]
[1763279049392,0.2,141.96,141.95,3.37698062]
[1763279049574,0.2,141.96,141.95,0.69]
[1763279057892,0.2,141.96,141.94,7.73514437]
[1763279059396,0.2,141.96,141.93,7.04555117]
[1763279059599,2.88698062,141.96,141.93,7.73555117]
[1763279062305,2.88698062,141.96,141.93,0.69]
[1763279062984,2.88698062,141.96,141.93,7.73564299]
[1763279064000,2.88698062,141.96,141.93,0.69]
[1763279066506,0.08,141.95,141.91,26.02818062]
[1763279066692,2.76698062,141.95,141.91,23.3412]
[1763279066896,2.76698062,141.95,141.91,30.38790348]
[1763279067096,2.76698062,141.95,141.92,0.69]
[1763279069203,2.76698062,141.94,141.9,7.73711722]
[1763279069510,2.68698062,141.94,141.9,7.04711722]
[1763279069812,2.76698062,141.93,141.9,0.69]
[1763279070106,2.68698062,141.92,141.89,0.69]
[1763279070612,2.68698062,141.93,141.89,7.7375742]
[1763279070992,2.68698062,141.93,141.9,0.69]
[1763279076115,2.76698062,141.93,141.9,0.69]
[1763279077609,2.68698062,141.91,141.88,0.69]
[1763279078804,2.68698062,141.92,141.88,0.69]
[1763279079704,2.68698062,141.92,141.88,7.73807536]
[1763279079902,2.68698062,141.92,141.89,0.69]
[1763279081718,2.68698062,141.93,141.89,10.42469114]
[1763279081908,106.88698062,141.94,141.89,9.73469114]
[1763279082215,106.88698062,141.94,141.9,0.69]
[1763279083009,104.2,141.94,141.9,10.42370049]
[1763279083404,104.2,141.94,141.91,0.68]
[1763279086428,104.2,141.94,141.91,7.7266061]
[1763279086604,104.2,141.94,141.92,0.68]
[1763279090247,104.2,141.94,141.92,7.72620607]
[1763279090603,104.2,141.94,141.93,0.68]
[1763279092326,104.2,141.94,141.92,0.68]
[1763279094829,0.2,141.96,141.92,9.4454501]
[1763279095247,0.2,141.96,141.93,0.68]
[1763279096128,0.2,141.96,141.93,7.72545732]
[1763279096311,1.91931716,141.96,141.93,0.68]
[1763279096631,1.71931716,141.95,141.93,0.68]
[1763279096935,1.91931716,141.96,141.93,0.68]
[1763279100332,0.2,141.96,141.93,9.44499829]
[1763279100842,0.2,141.96,141.94,0.68]
[1763279101053,0.2,141.96,141.94,2.39931716]
[1763279101345,0.2,141.96,141.95,2.39931716]
[1763279102321,0.2,141.96,141.95,9.44405122]
[1763279104241,0.2,141.96,141.95,12.26661763]
[1763279113939,0.2,141.96,141.95,44.70664532]
[1763279114323,0.2,141.98,141.96,9.78882769]
[1763279114527,0.2,141.98,141.97,11.50814485]
[1763279114724,0.2,141.98,141.97,12.16814485]
[1763279114925,0.2,141.98,141.97,14.99011387]
[1763279115349,0.2,141.98,141.97,22.0338555]
[1763279130173,0.2,141.98,141.96,12.24567847]
[1763279131571,0.2,141.98,141.96,9.86650951]
[1763279131767,0.2,141.98,141.97,2.37931716]
[1763279132146,0.2,141.98,141.97,5.20148529]
[1763279132369,0.2,141.98,141.97,37.64151298]
[1763279135078,0.2,141.98,141.97,44.68525461]
[1763279150901,0.2,141.98,141.97,45.64895686]
[1763279151679,0.2,141.98,141.97,22.99775686]
[1763279153404,0.2,142.0,141.99,32.44002769]
[1763279153605,0.2,142.0,141.99,35.8230471]
[1763279154101,0.2,142.0,141.99,38.64441899]
[1763279154400,0.2,142.0,141.99,45.68716847]
[1763279155507,1e-08,142.0,141.99,45.68716847]
[1763279156111,1e-08,142.0,141.99,48.37018788]
[1763279156792,0.2,142.02,142.01,32.44002769]
[1763279156991,0.2,142.02,142.01,38.50606651]
[1763279157385,0.2,142.02,142.01,41.32704045]
[1763279157786,0.2,142.02,142.01,48.36879807]
[1763279158796,0.2,142.02,142.01,45.68577866]
[1763279158989,0.2,142.02,142.01,48.36879807]
[1763279159908,0.2,142.06,142.05,19.51162182]
[1763279160318,0.2,142.06,142.05,20.21162182]
[1763279160491,0.2,142.06,142.05,23.03180019]
[1763279162111,0.2,142.06,142.05,44.35388994]
[1763279164582,0.2,142.06,142.05,41.67087053]
[1763279164797,0.2,142.06,142.05,44.35388994]
[1763279166812,0.2,142.08,142.07,37.80606651]
[1763279167112,0.2,142.08,142.07,38.50606651]
[1763279167297,1e-08,142.08,142.07,38.50606651]
[1763279167504,1e-08,142.08,142.07,38.64262909]
[1763279168020,1e-08,142.08,142.07,45.68141278]
[1763279168209,1e-08,142.08,142.07,42.99839337]
[1763279168398,1e-08,142.08,142.07,45.68141278]
[1763279171627,1e-08,142.08,142.07,48.36443219]
[1763279174446,1e-08,142.08,142.07,35.25960968]
[1763279174733,0.28000001,142.08,142.07,2.81958199]
[1763279174903,0.28000001,142.08,142.06,42.1620209]
[1763279175101,0.28000001,142.08,142.06,44.98219927]
[1763279175620,1e-08,142.08,142.06,44.98219927]
[1763279175925,1e-08,142.08,142.06,22.33099927]
[1763279176124,1e-08,142.08,142.07,25.99421941]
[1763279176428,1e-08,142.08,142.07,25.33421941]
[1763279176631,1e-08,142.08,142.07,28.15439778]
[1763279176843,1e-08,142.08,142.07,25.33421941]
[1763279177041,1e-08,142.08,142.07,35.1230471]
[1763279177506,1e-08,142.08,142.07,37.94302665]
[1763279178203,1e-08,142.08,142.07,35.19298265]
[1763279183629,0.28000001,142.08,142.07,25.47117955]
[1763279183828,0.28000001,142.08,142.05,2.68301941]
[1763279184213,0.28000001,142.08,142.05,5.50359551]
[1763279184829,0.28000001,142.08,142.05,2.68301941]
[1763279185036,2.96301942,142.08,142.04,42.1630825]
[1763279185212,2.96301942,142.08,142.04,63.31740327]
[1763279185422,0.28,142.07,142.04,63.31740327]
[1763279185737,0.28,142.07,142.04,29.6912354]
[1763279186114,0.28,142.07,142.04,35.19502981]
[1763279186313,1e-08,142.08,142.04,12.54382981]
[1763279186518,1e-08,142.08,142.06,2.68301941]
[1763279187322,1e-08,142.08,142.06,5.50339663]
[1763279187527,1e-08,142.08,142.06,2.82037722]
[1763279187528,0.28000001,142.08,142.06,2.82037722]
[1763279188341,0.28000001,142.08,142.05,30.87682821]
[1763279190526,2.68301941,142.09,142.05,30.87682821]
[1763279190834,2.68301941,142.09,142.05,9.72250744]
[1763279191226,2.68301941,142.09,142.05,30.73672686]
[1763279191619,104.2,142.12,142.06,12.4718471]
[1763279191825,104.2,142.12,142.08,2.68301941]
[1763279192016,106.88301941,142.12,142.08,2.68301941]
[1763279192824,106.88301941,142.12,142.07,16.76058679]
[1763279194044,2.68301941,142.12,142.07,16.76058679]
[1763279194227,2.68301941,142.13,142.08,12.4718471]
[1763279194428,2.68301941,142.14,142.1,2.68301941]
[1763279195028,2.68301941,142.14,142.1,23.82988438]
[1763279195753,2.68301941,142.14,142.1,28.1839884]
[1763279195933,2.68301941,142.14,142.1,30.86700781]
[1763279197733,2.68301941,142.14,142.1,28.1839884]
[1763279198148,2.68301941,142.13,142.1,28.1839884]
[1763279198643,104.2,142.17,142.1,28.1839884]
[1763279198847,2.68301941,142.13,142.1,28.1839884]
[1763279199156,2.68301941,142.13,142.1,7.03712343]
[1763279199747,2.68301941,142.12,142.08,12.4718471]
[1763279199949,2.68301941,142.12,142.08,19.50987779]
[1763279200542,2.68301941,142.12,142.09,21.14686497]
[1763279202354,2.68301941,142.12,142.09,28.18449801]
[1763279202730,2.68301941,142.12,142.09,7.03763304]
[1763279203252,2.68301941,142.12,142.08,37.9752367]
[1763279203552,104.2,142.16,142.08,37.9752367]
[1763279203756,2.68301941,142.12,142.08,16.82688099]
[1763279204069,2.68301941,142.12,142.08,37.9752367]
[1763279204555,2.68301941,142.12,142.08,21.14835571]
[1763279204730,2.68301941,142.11,142.07,7.03857826]
[1763279204931,2.68301941,142.11,142.07,28.18842492]
[1763279205238,2.68301941,142.11,142.07,7.03857826]
[1763279205755,2.68301941,142.11,142.08,4.74312253]
[1763279207023,2.68301941,142.11,142.07,7.03857826]
[1763279207227,2.68301941,142.11,142.07,11.78170079]
[1763279207638,2.68301941,142.1,142.07,4.74312253]
[1763279208131,2.68301941,142.09,142.06,29.6902701]
[1763279208347,2.68301941,142.09,142.06,34.43339263]
[1763279208936,2.68301941,142.1,142.06,34.43339263]
[1763279210844,1.71570516,142.1,142.06,35.14339263]
[1763279211032,1.71570516,142.1,142.06,36.85909779]
[1763279211945,1.71570516,142.09,142.06,27.39432253]
[1763279212257,1.71570516,142.09,142.06,34.43352224]
[1763279213054,104.2,142.13,142.06,34.43352224]
[1763279213257,1.71570516,142.1,142.07,0.71]
[1763279213860,1.71570516,142.08,142.03,2.42570516]
[1763279214069,113.98882769,142.13,142.04,21.15581255]
[1763279214070,1.71570516,142.07,142.04,21.15581255]
[1763279214362,1.71570516,142.08,142.04,0.71]
[1763279214846,1.71570516,142.07,142.04,0.71]
[1763279215037,1.71570516,142.08,142.04,0.71]
[1763279216475,1.71570516,142.05,142.03,21.15581255]
[1763279216764,1.71570516,142.04,142.0,7.75225352]
[1763279216970,1.71570516,142.03,142.01,4.74471716]
[1763279217173,1.71570516,142.03,142.0,7.75225352]
[1763279217471,1.71570516,142.04,142.0,28.91254271]
[1763279218162,1.71570516,142.04,142.0,30.62824787]
[1763279220156,1.71570516,142.04,142.01,0.71]
[1763279221159,1.71570516,142.04,142.01,7.75175464]
[1763279221357,107.87971199,142.12,142.03,1.71570516]
[1763279221555,1.71570516,142.09,142.05,1.71570516]
[1763279222044,1.71570516,142.09,142.05,2.42570516]
[1763279222443,4.73782295,142.11,142.05,0.71]
[1763279222669,1.71570516,142.07,142.04,21.15581255]
[1763279222966,1.71570516,142.07,142.03,30.62180901]
[1763279223262,1.71570516,142.07,142.03,21.86581255]
[1763279223665,1.71570516,142.07,142.03,28.90646721]
[1763279224533,1.71570516,142.08,142.03,30.62217237]
[1763279224739,1.71570516,142.09,142.05,1.71570516]
[1763279225163,1.71570516,142.09,142.05,0.71]
[1763279227686,1.71570516,142.09,142.05,9.46531969]
[1763279227842,1.71570516,142.11,142.07,1.71570516]
[1763279228375,1.71570516,142.11,142.07,2.42570516]
[1763279228867,1.71570516,142.1,142.07,0.71]
[1763279229277,1.71570516,142.1,142.06,0.71]
[1763279229493,1.71570516,142.09,142.06,0.71]
[1763279232084,1.71570516,142.1,142.06,7.74924213]
[1763279232580,1.71570516,142.1,142.07,0.71]
[1763279234085,1.71570516,142.09,142.07,0.71]
[1763279235180,1.71570516,142.09,142.05,28.85246873]
[1763279235397,1.71570516,142.09,142.06,0.66]
[1763279243584,1.71570516,142.08,142.06,0.66]
[1763279244086,1.71570516,142.08,142.04,28.19438071]
[1763279244286,1.71570516,142.07,142.04,7.70005994]
[1763279244488,1.71570516,142.07,142.04,14.73954595]
[1763279244685,1.71570516,142.06,142.02,30.35220052]
[1763279244892,1.71570516,142.05,142.02,51.50950507]
[1763279245090,1.71570516,142.05,142.02,50.84950507]
[1763279245272,1.71570516,142.05,142.03,0.66]
[1763279246289,1.71570516,142.04,142.01,0.66]
[1763279246460,1.71570516,142.03,142.01,0.66]
[1763279247587,11.6042422,142.08,142.01,9.41740516]
[1763279247867,1.71570516,142.05,142.01,9.41740516]
[1763279248169,1.71570516,142.05,142.02,0.66]
[1763279250667,1.71570516,142.05,142.02,7.70124428]
[1763279250868,1.71570516,142.05,142.02,0.66]
[1763279253205,1.71570516,142.04,142.0,28.86064576]
[1763279253384,1.71570516,142.04,142.01,0.66]
[1763279254094,1.71570516,142.02,141.99,23.3112]
[1763279254294,1.71570516,142.02,142.0,0.66]
[1763279254505,1.71570516,142.03,142.0,0.66]
[1763279260187,1.71570516,142.03,142.0,7.70223705]
[1763279260385,4.74415881,142.06,142.01,0.66]
[1763279260706,1.71570516,142.06,142.01,2.37570516]
[1763279260995,1.71570516,142.06,142.01,0.66]
[1763279261178,1.71570516,142.04,141.99,8.75813624]
[1763279261379,1.71570516,142.04,142.01,0.66]
[1763279261593,1.71570516,142.04,142.01,7.70167975]
[1763279262000,1.71570516,142.04,142.02,0.66]
[1763279272918,2.68306289,142.04,142.02,0.66]
[1763279275913,2.68306289,142.03,141.99,7.04270048]
[1763279276120,2.68306289,142.02,142.0,0.72]
[1763279277008,2.68306289,142.01,141.99,0.72]
[1763279277713,2.68306289,142.03,141.99,0.72]
[1763279278018,2.68306289,142.02,141.99,0.72]
[1763279280517,4.74023236,142.05,141.99,0.72]
[1763279280719,2.68306289,142.02,141.99,0.72]
[1763279280904,2.68306289,142.02,141.99,7.76269265]
[1763279281103,104.2,142.06,142.01,2.68306289]
[1763279281309,106.88306289,142.06,142.01,2.68306289]
[1763279281614,106.88306289,142.06,142.02,0.72]
[1763279282293,2.68306289,142.05,142.02,0.72]
[1763279282824,2.68306289,142.08,142.02,0.72]
[1763279282988,2.68306289,142.08,142.04,2.68306289]
[1763279282989,7.42472157,142.08,142.04,2.68306289]
[1763279283188,2.68306289,142.08,142.05,0.72]
[1763279284822,2.68306289,142.07,142.05,0.72]
[1763279285023,2.68306289,142.08,142.05,0.72]
[1763279286016,2.68306289,142.07,142.05,0.72]
[1763279286220,104.2,142.1,142.05,25.35914283]
[1763279286391,2.68306289,142.13,142.08,2.68306289]
[1763279286793,2.68306289,142.12,142.09,0.72]
[1763279286993,2.68306289,142.14,142.09,21.87133782]
[1763279287193,2.68306289,142.12,142.09,21.87133782]
[1763279287420,2.68306289,142.12,142.09,0.72]
[1763279287608,2.68306289,142.12,142.07,2.68306289]
[1763279287609,2.68306289,142.12,142.1,21.87133782]
[1763279288116,2.68306289,142.13,142.11,0.72]
[1763279288302,2.68306289,142.14,142.11,0.72]
[1763279288512,2.68306289,142.15,142.12,21.14686497]
[1763279289020,2.68306289,142.15,142.13,0.72]
[1763279289235,104.2,142.16,142.13,0.72]
[1763279289429,2.68306289,142.15,142.13,0.72]
[1763279289739,106.88306289,142.16,142.13,0.72]
[1763279291035,106.88306289,142.16,142.13,21.86537444]
[1763279291425,106.88306289,142.16,142.12,9.71930734]
[1763279291426,104.2,142.16,142.14,0.72]
[1763279291728,106.88306289,142.16,142.14,21.14537444]
[1763279292036,104.2,142.16,142.14,0.72]
[1763279292224,106.88306289,142.16,142.14,0.72]
[1763279293636,2.68306289,142.16,142.14,0.72]
[1763279294049,32.44002769,142.19,142.14,0.72]
[1763279294222,2.68306289,142.16,142.14,0.72]
[1763279295817,2.68306289,142.16,142.14,21.86388413]
[1763279296319,2.68306289,142.17,142.15,0.68]
[1763279296928,2.68306289,142.17,142.14,21.82388413]
[1763279297438,2.68306289,142.17,142.15,0.68]
[1763279297642,2.68306289,142.17,142.14,21.82388413]
[1763279298241,2.68306289,142.17,142.15,0.68]
[1763279298442,2.68306289,142.16,142.08,7.03784769]
[1763279298652,2.68306289,142.11,142.08,0.68]
[1763279298829,2.68306289,142.1,142.09,21.14388413]
[1763279299020,2.68306289,142.11,142.08,0.68]
[1763279299236,2.68306289,142.12,142.08,0.68]
[1763279299439,2.68306289,142.12,142.08,24.50694702]
[1763279299644,9.78882769,142.17,142.09,2.68306289]
[1763279299818,2.68306289,142.14,142.09,26.01426289]
[1763279300024,2.68306289,142.14,142.1,0.68]
[1763279300349,9.78882769,142.17,142.1,0.68]
[1763279300532,2.68306289,142.14,142.1,10.40025105]
[1763279300846,2.68306289,142.14,142.1,31.54860676]
[1763279301028,2.68306289,142.14,142.11,0.68]
[1763279301238,2.68306289,142.15,142.11,0.68]
[1763279301425,2.68306289,142.15,142.11,21.82686497]
[1763279301634,2.68306289,142.15,142.12,0.68]
[1763279302446,2.68306289,142.14,142.12,0.68]
[1763279306143,2.68306289,142.15,142.12,0.68]
[1763279307527,2.68306289,142.16,142.12,0.68]
[1763279308637,2.68306289,142.16,142.12,7.71629831]
[1763279309255,2.68306289,142.16,142.13,0.68]
[1763279309654,104.2,142.18,142.13,3.36306289]
[1763279309946,2.68306289,142.16,142.14,0.68]
[1763279311158,2.68306289,142.17,142.14,0.68]
[1763279312369,2.68306289,142.16,142.14,0.68]
[1763279313263,2.68306289,142.16,142.12,28.17985491]
[1763279313453,2.68306289,142.16,142.13,0.68]
[1763279314854,2.68306289,142.16,142.13,21.82388413]
[1763279315244,106.88306289,142.18,142.13,24.50694702]
[1763279315453,106.88306289,142.18,142.14,10.39838018]
[1763279316075,106.88306289,142.18,142.15,0.68]
[1763279317675,2.68306289,142.17,142.15,0.68]
[1763279322762,106.88306289,142.18,142.15,0.68]
[1763279325679,106.88306289,142.18,142.15,7.71472593]
[1763279325852,2.68306289,142.18,142.15,7.71472593]
[1763279326052,2.68306289,142.18,142.16,0.67]
[1763279326369,2.68306289,142.18,142.16,7.70429714]
[1763279326779,2.68306289,142.18,142.17,0.67]
[1763279326979,2.68306289,142.18,142.15,28.17548035]
[1763279327175,2.68306289,142.18,142.15,7.03457623]
[1763279327486,2.68306289,142.18,142.16,0.67]
[1763279328481,108.07683868,142.21,142.16,0.67]
[1763279328684,2.68306289,142.18,142.16,0.67]
[1763279330477,2.68306289,142.17,142.13,0.67]
[1763279330668,2.68306289,142.15,142.13,0.67]
[1763279331289,4.73707224,142.19,142.13,0.67]
[1763279331457,2.68306289,142.17,142.13,3.35306289]
[1763279331658,106.88306289,142.2,142.13,3.35306289]
[1763279331659,2.68306289,142.18,142.13,3.35306289]
[1763279331878,2.68306289,142.18,142.14,0.67]
[1763279332584,104.2,142.2,142.15,7.03482237]
[1763279332764,2.68306289,142.18,142.15,7.03482237]
[1763279333086,1.71369617,142.18,142.16,0.67]
[1763279333881,104.2,142.2,142.16,0.67]
[1763279334071,1.71369617,142.18,142.16,0.67]
[1763279337470,1.71369617,142.18,142.16,7.70430823]
[1763279337784,104.2,142.2,142.16,7.70430823]
[1763279337785,1.71369617,142.19,142.16,7.70430823]
[1763279337963,1.71369617,142.19,142.17,0.67]
[1763279341776,1.71369617,142.18,142.15,7.03482237]
[1763279342079,1.71369617,142.18,142.17,0.67]
[1763279345377,104.2,142.2,142.17,0.67]
[1763279345573,0.2,142.21,142.17,7.70381563]
[1763279345780,0.2,142.21,142.17,9.4175118]
[1763279346093,0.2,142.21,142.18,0.67]
[1763279346295,1.71369617,142.19,142.15,8.74805139]
[1763279346493,1.71369617,142.19,142.17,0.67]
[1763279350607,1.71369617,142.2,142.17,7.70379835]
[1763279351102,0.2,142.21,142.18,0.67]
[1763279351413,1.71369617,142.2,142.18,0.67]
[1763279352708,1.71369617,142.19,142.18,0.67]
[1763279355607,1.71369617,142.2,142.18,0.67]
[1763279356505,1.71369617,142.19,142.15,0.66]
[1763279356807,1.71369617,142.16,142.15,0.66]
[1763279357203,1.71369617,142.16,142.12,29.68733268]
[1763279357409,1.71369617,142.16,142.15,0.66]
[1763279359321,6.85478468,142.2,142.15,0.66]
[1763279359518,1.71369617,142.16,142.15,0.66]
[1763279360626,1.71369617,142.16,142.13,0.66]
[1763279360818,1.71369617,142.16,142.14,0.66]
[1763279361127,1.71369617,142.15,142.07,16.64361237]
[1763279361298,1.71369617,142.12,142.1,0.66]
[1763279362224,4.74237371,142.17,142.1,0.66]
[1763279362225,1.71369617,142.13,142.1,0.66]
[1763279363196,1.71369617,142.14,142.1,9.41088097]
[1763279363809,1.71369617,142.14,142.11,0.66]
[1763279364015,1.71369617,142.16,142.11,2.37369617]
[1763279364222,1.71369617,142.15,142.11,9.41041022]
[1763279364527,1.71369617,142.15,142.12,0.66]
[1763279368729,1.71369617,142.13,142.1,22.6512]
[1763279369032,1.71369617,142.13,142.11,0.66]
[1763279370036,1.71369617,142.12,142.11,0.66]
[1763279370543,1.71369617,142.13,142.11,0.66]
[1763279374123,104.2,142.16,142.11,0.66]
[1763279374424,1.71369617,142.14,142.11,0.66]
[1763279375543,1.71369617,142.13,142.11,0.66]
[1763279375733,104.2,142.16,142.11,0.66]
[1763279375901,1.71369617,142.14,142.11,0.66]
[1763279379320,1.71369617,142.13,142.11,0.66]
[1763279382612,104.2,142.16,142.08,31.40297943]
[1763279382813,1.71369617,142.12,142.09,0.66]
[1763279385733,107.87807114,142.16,142.09,0.66]
[1763279386036,1.71369617,142.12,142.09,0.66]
[1763279387639,107.87807114,142.16,142.09,0.66]
[1763279387849,1.71369617,142.12,142.09,0.66]
[1763279389137,1.71369617,142.11,142.08,0.71]
[1763279390041,1.71369617,142.1,142.06,0.71]
[1763279390228,120.84361237,142.14,142.06,0.71]
[1763279390229,1.71369617,142.09,142.06,0.71]
[1763279390580,1.71369617,142.1,142.07,0.71]
[1763279391014,104.2,142.13,142.07,0.71]
[1763279391214,1.71369617,142.11,142.07,0.71]
[1763279391534,1.71369617,142.1,142.07,0.71]
[1763279391926,1.71369617,142.12,142.07,2.42369617]
[1763279392414,1.71369617,142.14,142.1,1.71369617]
[1763279392611,1.71369617,142.14,142.11,0.71]
[1763279392936,1.71369617,142.14,142.1,0.71]
[1763279395054,2.67976667,142.14,142.1,0.71]
[1763279396859,2.67976667,142.13,142.1,0.71]
[1763279398358,2.67976667,142.15,142.1,3.38976667]
[1763279398656,2.67976667,142.15,142.11,0.71]
[1763279399039,110.55783781,142.16,142.11,3.38976667]
[1763279399445,110.55783781,142.16,142.12,0.71]
[1763279400239,2.67976667,142.15,142.12,0.71]
[1763279403262,106.87976667,142.16,142.12,3.38976667]
[1763279403479,106.87976667,142.16,142.12,0.71]
[1763279403763,106.87976667,142.16,142.13,0.71]
[1763279404451,106.87976667,142.16,142.11,9.7163031]
[1763279404768,106.87976667,142.16,142.13,0.71]
[1763279405066,2.67976667,142.15,142.13,0.71]
[1763279405867,104.2,142.16,142.13,0.71]
[1763279406174,2.67976667,142.15,142.13,0.71]
[1763279409564,2.67976667,142.15,142.1,7.74712113]
[1763279409746,2.67976667,142.15,142.11,0.71]
[1763279409946,2.67976667,142.15,142.11,3.38976667]
[1763279410373,2.67976667,142.15,142.12,0.71]
[1763279412755,2.67976667,142.15,142.11,2.67976667]
[1763279413064,2.67976667,142.15,142.12,0.71]
[1763279413250,129.53096667,142.16,142.12,0.71]
[1763279413448,7.42862595,142.15,142.12,0.71]
[1763279413682,2.67976667,142.15,142.12,0.71]
[1763279413977,129.53096667,142.16,142.12,0.71]
[1763279415765,2.67976667,142.15,142.11,0.68]
[1763279415963,2.67976667,142.15,142.12,0.68]
[1763279415964,7.42872841,142.15,142.12,0.68]
[1763279419470,7.42872841,142.15,142.1,3.35976667]
[1763279419677,7.42872841,142.15,142.11,0.68]
[1763279421493,2.67976667,142.13,142.07,7.03764021]
[1763279421659,2.67976667,142.13,142.08,3.35976667]
[1763279422355,2.67976667,142.12,142.08,3.35976667]
[1763279422770,2.67976667,142.13,142.09,0.68]
[1763279425075,2.67976667,142.1,142.05,0.68]
[1763279425267,2.67976667,142.1,142.06,2.67976667]
[1763279425785,4.74896174,142.12,142.07,0.68]
[1763279425991,2.67976667,142.12,142.08,2.67976667]
[1763279426191,2.67976667,142.1,142.05,7.03979091]
[1763279426387,2.67976667,142.1,142.07,0.68]
[1763279426682,2.67976667,142.09,142.05,2.67976667]
[1763279426981,2.67976667,142.08,142.05,0.68]
[1763279427386,2.67976667,142.09,142.05,3.35976667]
[1763279427771,2.67976667,142.09,142.06,0.68]
[1763279436193,2.67976667,142.1,142.06,3.35976667]
[1763279436382,126.8512,142.12,142.09,2.67976667]
[1763279436587,104.2,142.12,142.1,2.67976667]
[1763279437193,104.2,142.12,142.1,3.35976667]
[1763279438887,104.2,142.12,142.09,3.35976667]
[1763279439085,106.87976667,142.12,142.08,2.67976667]
[1763279439507,116.66859436,142.16,142.11,2.67976667]
[1763279439700,2.67976667,142.15,142.09,0.68]
[1763279440010,2.67976667,142.15,142.11,2.67976667]
[1763279440381,2.67976667,142.15,142.11,3.35976667]
[1763279445484,2.67976667,142.15,142.12,0.66]
[1763279445897,2.67976667,142.15,142.11,0.66]
[1763279446208,2.67976667,142.14,142.11,0.66]
[1763279448610,130.52938221,142.16,142.11,0.66]
[1763279448797,2.67976667,142.14,142.11,0.66]
[1763279452718,2.67976667,142.15,142.11,3.33976667]
[1763279452901,129.53096667,142.16,142.11,3.33976667]
[1763279453100,129.53096667,142.16,142.12,0.66]
[1763279453302,133.20890083,142.16,142.12,0.66]
[1763279454919,1.71461059,142.15,142.12,0.66]
[1763279460128,104.2,142.19,142.14,1.71461059]
[1763279460418,1.71461059,142.2,142.13,7.03722125]
[1763279460635,1.71461059,142.16,142.13,0.66]
[1763279460922,1.71461059,142.16,142.14,0.66]
[1763279461302,24.36581059,142.18,142.14,0.66]
[1763279462924,22.6512,142.18,142.15,1.71461059]
[1763279463121,3.67708289,142.19,142.15,1.71461059]
[1763279463326,1.71461059,142.2,142.16,0.66]
[1763279463510,28.24259008,142.21,142.16,2.37461059]
[1763279463936,28.24259008,142.21,142.17,0.66]
[1763279464236,1.71461059,142.2,142.17,0.66]
[1763279465122,0.2,142.21,142.18,1.71461059]
[1763279465433,0.2,142.21,142.18,10.46393564]
[1763279465662,0.2,142.21,142.19,0.66]
[1763279466136,0.2,142.21,142.19,3.47819142]
[1763279466434,0.2,142.21,142.2,0.66]
[1763279467417,0.2,142.21,142.18,1.71461059]
[1763279467624,0.2,142.21,142.2,0.66]
[1763279471242,0.2,142.21,142.19,2.37461059]
[1763279471427,0.2,142.21,142.19,0.66]
[1763279472538,11.70343828,142.21,142.18,3.67578084]
[1763279472835,1.71461059,142.2,142.16,1.71461059]
[1763279473034,1.71461059,142.2,142.17,0.66]
[1763279477039,9.98882769,142.21,142.17,0.66]
[1763279477245,1.71461059,142.2,142.17,0.66]
[1763279477468,9.98882769,142.21,142.17,0.66]